[Event "RUS-ch Blitz Women 2018"]
[Site "Sochi"]
[Date "2018.10.07"]
[Round "14"]
[White "Vinokur, Yuliya"]
[Black "Belenkaya, Dina"]
[Result "1-0"]
[ECO "D20"]
[WhiteElo "2170"]
[BlackElo "2329"]
[Annotator "NA"]
[PlyCount "67"]
[EventDate "2018.10.07"]
[EventType "swiss"]
[EventCountry "RUS"]
[SourceTitle "playchess.com"]
[Source "ChessBase"]
[SourceQuality "1"]
[TimeControl "180+2"]

1. d4 {[%emt 0:00:00]} d5 {[%emt 0:00:00]} 2. c4 {[%emt 0:00:01]} dxc4 {[%emt 0:00:00]} 3. e3 {[%emt 0:00:01]} Nf6 {[%emt 0:00:00]} 4. Bxc4 {[%emt 0:00:02]} e6 {[%emt 0:00:01]} 5. Nf3 {[%emt 0:00:05]} a6 {[%emt 0:00:01]} 6. Bd3 {[%emt 0:00:09]} c5 {[%emt 0:00:04]} 7. O-O {[%emt 0:00:03]} Nbd7 {[%emt 0:00:02]} 8. Re1 {[%emt 0:00:33]} b6 {[%emt 0:00:02]} 9. e4 {[%emt 0:00:05]} cxd4 {[%emt 0:00:08]} 10. e5 {[%emt 0:00:18]} Nd5 {[%emt 0:00:20]} 11. Nxd4 {[%emt 0:00:10]} Bb7 {[%emt 0:00:01]} 12. Nxe6 {[%emt 0:00:26]} fxe6 {[%emt 0:00:48]} 13. Qh5+ {[%emt 0:00:02]} Ke7 {[%emt 0:00:23]} 14. Bg5+ {[%emt 0:00:03]} N7f6 {[%emt 0:00:08]} 15. Nc3 {[%emt 0:00:32]} Nxc3 {[%emt 0:00:21]} 16. exf6+ {[%emt 0:00:02]} gxf6 {[%emt 0:00:02]} 17. Bxf6+ {[%emt 0:00:23]} Kxf6 {[%emt 0:00:01]} 18. Qe5+ {[%emt 0:00:01]} Kf7 {[%emt 0:00:09]} 19. Qxe6+ {[%emt 0:00:22]} Kg7 {[%emt 0:00:00]} 20. Qg4+ {[%emt 0:00:01]} Kf7 {[%emt 0:00:07]} 21. Bc4+ {[%emt 0:00:05]} Nd5 {[%emt 0:00:05]} 22. Rad1 {[%emt 0:00:03]} Bc5 {[%emt 0:00:22]} 23. Qe6+ {[%emt 0:00:03]} Kg7 {[%emt 0:00:03]} 24. Bxd5 {[%emt 0:00:07]} Bxd5 {[%emt 0:00:07]} 25. Rxd5 {[%emt 0:00:02]} Qf6 {[%emt 0:00:05]} 26. Rd7+ {[%emt 0:00:01]} Kg6 {[%emt 0:00:01]} 27. Qg4+ {[%emt 0:00:01]} Kh6 {[%emt 0:00:02]} 28. Re6 {[%emt 0:00:04]} Bxf2+ {[%emt 0:00:05]} 29. Kh1 {[%emt 0:00:04]} Rhf8 {[%emt 0:00:21]} 30. Qg7+ {[%emt 0:00:03]} Kh5 {[%emt 0:00:01]} 31. Rxf6 {[%emt 0:00:02]} Rae8 {[%emt 0:00:05]} 32. Qxh7+ {[%emt 0:00:04]} Kg5 {[%emt 0:00:01]} 33. Qf5+ {[%emt 0:00:02]} Kh4 {[%emt 0:00:01]} 34. Rh7# {[%emt 0:00:01]} 1-0

[Event "RUS-ch Blitz Women 2018"]
[Site "Sochi"]
[Date "2018.10.07"]
[Round "14"]
[White "Goltseva, Ekaterina"]
[Black "Kovanova, Baira"]
[Result "1-0"]
[ECO "E53"]
[WhiteElo "2169"]
[BlackElo "2350"]
[Annotator "NA"]
[PlyCount "69"]
[EventDate "2018.10.07"]
[EventType "swiss"]
[EventCountry "RUS"]
[SourceTitle "playchess.com"]
[Source "ChessBase"]
[SourceQuality "1"]
[TimeControl "180+2"]

1. d4 {[%emt 0:00:00]} Nf6 {[%emt 0:00:00]} 2. c4 {[%emt 0:00:00]} e6 {[%emt 0:00:00]} 3. Nc3 {[%emt 0:00:01]} Bb4 {[%emt 0:00:01]} 4. e3 {[%emt 0:00:01]} O-O {[%emt 0:00:02]} 5. Bd3 {[%emt 0:00:01]} c5 {[%emt 0:00:01]} 6. Nf3 {[%emt 0:00:01]} d5 {[%emt 0:00:03]} 7. O-O {[%emt 0:00:02]} b6 {[%emt 0:00:01]} 8. a3 {[%emt 0:00:22]} Bxc3 {[%emt 0:00:02]} 9. bxc3 {[%emt 0:00:01]} Ba6 {[%emt 0:00:01]} 10. Qe2 {[%emt 0:00:28]} Nc6 {[%emt 0:00:05]} 11. cxd5 {[%emt 0:00:47]} Bxd3 {[%emt 0:00:02]} 12. Qxd3 {[%emt 0:00:01]} exd5 {[%emt 0:00:06]} 13. dxc5 {[%emt 0:00:09]} bxc5 {[%emt 0:00:01]} 14. c4 {[%emt 0:00:01]} Na5 {[%emt 0:00:40]} 15. cxd5 {[%emt 0:00:16]} c4 {[%emt 0:00:10]} 16. Qe2 {[%emt 0:00:15]} Nxd5 {[%emt 0:00:20]} 17. Nd4 {[%emt 0:00:08]} Nf4 {[%emt 0:00:13]} 18. Qg4 {[%emt 0:00:32]} Nd3 {[%emt 0:00:13]} 19. Bd2 {[%emt 0:00:06]} Ne5 {[%emt 0:01:03]} 20. Qg3 {[%emt 0:00:08]} Ng6 {[%emt 0:00:21]} 21. Bc3 {[%emt 0:00:03]} Rc8 {[%emt 0:00:04]} 22. Nf5 {[%emt 0:00:05]} f6 {[%emt 0:00:05]} 23. Rfd1 {[%emt 0:00:01]} Qb6 {[%emt 0:00:04]} 24. Rab1 {[%emt 0:00:07]} Nb3 {[%emt 0:00:01]} 25. Rd6 {[%emt 0:00:05]} Qc5 {[%emt 0:00:01]} 26. Qh3 {[%emt 0:00:07]} Rcd8 {[%emt 0:00:01]} 27. Rbd1 {[%emt 0:00:02]} Rxd6 {[%emt 0:00:03]} 28. Rxd6 {[%emt 0:00:01]} Qxa3 {[%emt 0:00:02]} 29. g3 {[%emt 0:00:04]} Qc1+ {[%emt 0:00:02]} 30. Kg2 {[%emt 0:00:01]} Qxc3 {[%emt 0:00:01]} 31. Rd7 {[%emt 0:00:01]} Rf7 {[%emt 0:00:05]} 32. Rd8+ {[%emt 0:00:02]} Nf8 {[%emt 0:00:01]} 33. Qg4 {[%emt 0:00:03]} Kh8 {[%emt 0:00:05]} 34. Nd6 {[%emt 0:00:01]} Kg8 {[%emt 0:00:03]} 35. Qe6 {[%emt 0:00:03]} 1-0

[Event "RUS-ch Blitz Women 2018"]
[Site "Sochi"]
[Date "2018.10.07"]
[Round "14"]
[White "Shafigullina, Zarina"]
[Black "Bivol, Alina"]
[Result "0-1"]
[ECO "A49"]
[WhiteElo "2150"]
[BlackElo "2403"]
[Annotator "ChessBase"]
[PlyCount "54"]
[EventDate "2018.10.07"]
[EventType "swiss"]
[EventCountry "RUS"]
[SourceTitle "playchess.com"]
[Source "ChessBase"]
[SourceQuality "1"]
[TimeControl "180+2"]

1. d4 {[%emt 0:00:00]} Nf6 {[%emt 0:00:00]} 2. Nf3 {[%emt 0:00:00]} g6 {[%emt 0:00:00]} 3. g3 {[%emt 0:00:00]} Bg7 {[%emt 0:00:00]} 4. Bg2 {[%emt 0:00:00]} O-O {[%emt 0:00:01]} 5. O-O {[%emt 0:00:02]} d6 6. c4 Nc6 {[%emt 0:00:02]} 7. Nc3 {[%emt 0:00:02]} Rb8 {[%emt 0:00:00]} 8. h3 {[%emt 0:00:02]} a6 {[%emt 0:00:01]} 9. a4 {[%emt 0:00:02]} Bf5 {[%emt 0:00:15]} 10. Re1 {[%emt 0:00:04]} Ne4 {[%emt 0:00:05]} 11. g4 {[%emt 0:00:11]} Nxc3 {[%emt 0:00:01]} 12. bxc3 {[%emt 0:00:01]} Be4 {[%emt 0:00:04]} 13. Be3 {[%emt 0:00:07]} Na5 {[%emt 0:00:05]} 14. Nd2 {[%emt 0:00:04]} Bxg2 {[%emt 0:00:01]} 15. Kxg2 {[%emt 0:00:02]} e5 {[%emt 0:00:08]} 16. Qc2 {[%emt 0:00:01]} f5 {[%emt 0:00:06]} 17. f3 {[%emt 0:00:06]} e4 {[%emt 0:00:22]} 18. Bf2 {[%emt 0:00:26]} Qe7 {[%emt 0:00:13]} 19. fxe4 {[%emt 0:00:55]} fxg4 {[%emt 0:00:00]} 20. h4 {[%emt 0:00:01]} Rxf2+ {[%emt 0:00:14]} 21. Kxf2 {[%emt 0:00:07]} Qxh4+ {[%emt 0:00:06]} 22. Kg2 {[%emt 0:00:36]} Qh3+ {[%emt 0:00:02]} 23. Kg1 {[%emt 0:00:02]} Bh6 {[%emt 0:00:18]} 24. Nf1 {[%emt 0:00:06]} Rf8 {[%emt 0:00:09]} 25. Qd3 {[%emt 0:00:15]} Rxf1+ {[%emt 0:00:05]} 26. Rxf1 {[%emt 0:00:01]} Be3+ {[%emt 0:00:00]} 27. Rf2 {[%emt 0:00:01]} Qg3+ {[%emt 0:00:01]} 0-1

[Event "RUS-ch Blitz Women 2018"]
[Site "Sochi"]
[Date "2018.10.07"]
[Round "14"]
[White "Sukhareva, Evgeniya"]
[Black "Ambartsumova, Karina"]
[Result "0-1"]
[ECO "A53"]
[WhiteElo "2125"]
[BlackElo "2379"]
[Annotator "NA"]
[PlyCount "84"]
[EventDate "2018.10.07"]
[EventType "swiss"]
[EventCountry "RUS"]
[SourceTitle "playchess.com"]
[Source "ChessBase"]
[SourceQuality "1"]
[TimeControl "180+2"]

1. d4 {[%emt 0:00:00]} Nf6 {[%emt 0:00:00]} 2. c4 {[%emt 0:00:00]} d6 {[%emt 0:00:03]} 3. Nc3 e5 4. d5 {[%emt 0:00:01]} Nbd7 {[%emt 0:00:06]} 5. e4 {[%emt 0:00:02]} Nc5 {[%emt 0:00:01]} 6. Bd3 {[%emt 0:00:01]} a5 {[%emt 0:00:02]} 7. Nge2 {[%emt 0:00:01]} g6 {[%emt 0:00:05]} 8. h3 {[%emt 0:00:01]} Bg7 {[%emt 0:00:01]} 9. g4 {[%emt 0:00:01]} O-O {[%emt 0:00:18]} 10. Ng3 {[%emt 0:00:01]} c6 {[%emt 0:00:12]} 11. Be3 {[%emt 0:00:07]} Nfd7 {[%emt 0:00:09]} 12. Qd2 {[%emt 0:00:19]} Nb6 {[%emt 0:00:16]} 13. b3 {[%emt 0:00:19]} Bd7 {[%emt 0:00:10]} 14. Bc2 {[%emt 0:00:07]} cxd5 {[%emt 0:00:13]} 15. cxd5 {[%emt 0:00:19]} Qc7 {[%emt 0:00:23]} 16. Rc1 {[%emt 0:00:04]} Rac8 {[%emt 0:00:05]} 17. Bb1 {[%emt 0:00:02]} Qd8 {[%emt 0:00:17]} 18. O-O {[%emt 0:00:03]} Bf6 {[%emt 0:00:20]} 19. Kg2 {[%emt 0:00:05]} a4 {[%emt 0:00:08]} 20. Bc2 {[%emt 0:00:26]} axb3 {[%emt 0:00:03]} 21. Bxb3 {[%emt 0:00:21]} Nxb3 {[%emt 0:00:06]} 22. axb3 {[%emt 0:00:02]} Na8 {[%emt 0:00:00]} 23. Bh6 {[%emt 0:00:15]} Bg7 {[%emt 0:00:02]} 24. Bg5 {[%emt 0:00:01]} f6 {[%emt 0:00:04]} 25. Be3 {[%emt 0:00:01]} Nc7 {[%emt 0:00:02]} 26. Qd3 {[%emt 0:00:11]} Na6 {[%emt 0:00:03]} 27. Qe2 {[%emt 0:00:12]} Qa5 {[%emt 0:00:20]} 28. Qb2 {[%emt 0:00:03]} Nb4 {[%emt 0:00:06]} 29. Ra1 {[%emt 0:00:04]} Qc7 {[%emt 0:00:03]} 30. Nge2 {[%emt 0:00:09]} f5 {[%emt 0:00:04]} 31. gxf5 gxf5 {[%emt 0:00:00]} 32. exf5 {[%emt 0:00:09]} Bxf5 {[%emt 0:00:02]} 33. Nb5 {[%emt 0:00:05]} Qd7 {[%emt 0:00:01]} 34. Na7 {[%emt 0:00:08]} Bxh3+ {[%emt 0:00:01]} 35. Kh2 {[%emt 0:00:01]} Bxf1 {[%emt 0:00:01]} 36. Rxf1 {[%emt 0:00:01]} Rc2 {[%emt 0:00:04]} 37. Qa3 {[%emt 0:00:06]} Nd3 {[%emt 0:00:05]} 38. Ng3 {[%emt 0:00:14]} Nxf2 {[%emt 0:00:03]} 39. Bxf2 {[%emt 0:00:05]} Rcxf2+ {[%emt 0:00:01]} 40. Rxf2 {[%emt 0:00:01]} Rxf2+ {[%emt 0:00:01]} 41. Kg1 {[%emt 0:00:01]} Rf8 {[%emt 0:00:04]} 42. Qa4 {[%emt 0:00:06]} Qh3 {[%emt 0:00:05]} 0-1

[Event "RUS-ch Blitz Women 2018"]
[Site "Sochi"]
[Date "2018.10.07"]
[Round "14"]
[White "Ivanova, Karina"]
[Black "Shuvalova, Polina"]
[Result "1/2-1/2"]
[ECO "A05"]
[WhiteElo "2124"]
[BlackElo "2421"]
[Annotator "ChessBase"]
[PlyCount "114"]
[EventDate "2018.10.07"]
[EventType "swiss"]
[EventCountry "RUS"]
[SourceTitle "playchess.com"]
[Source "ChessBase"]
[SourceQuality "1"]
[TimeControl "180+2"]

1. Nf3 {[%emt 0:00:00]} Nf6 {[%emt 0:00:00]} 2. g3 {[%emt 0:00:01]} d5 {[%emt 0:00:00]} 3. Bg2 {[%emt 0:00:02]} c6 {[%emt 0:00:00]} 4. O-O {[%emt 0:00:03]} Bf5 {[%emt 0:00:00]} 5. c4 {[%emt 0:00:02]} e6 {[%emt 0:00:02]} 6. d3 {[%emt 0:00:02]} Be7 {[%emt 0:00:02]} 7. cxd5 {[%emt 0:00:06]} exd5 {[%emt 0:00:02]} 8. Nc3 {[%emt 0:00:02]} O-O {[%emt 0:00:03]} 9. Qb3 {[%emt 0:00:02]} Qb6 {[%emt 0:00:05]} 10. Qc2 {[%emt 0:00:02]} Nbd7 {[%emt 0:00:07]} 11. e4 {[%emt 0:00:02]} Bg6 {[%emt 0:00:14]} 12. Nh4 {[%emt 0:00:27]} Rac8 {[%emt 0:00:14]} 13. Nxg6 {[%emt 0:00:06]} hxg6 {[%emt 0:00:02]} 14. Bg5 {[%emt 0:00:38]} Rfe8 {[%emt 0:00:03]} 15. Rfe1 {[%emt 0:00:06]} dxe4 {[%emt 0:00:15]} 16. dxe4 {[%emt 0:00:11]} Nf8 {[%emt 0:00:23]} 17. h3 {[%emt 0:00:18]} Ne6 {[%emt 0:00:05]} 18. Be3 {[%emt 0:00:04]} Qc7 {[%emt 0:00:04]} 19. Rad1 {[%emt 0:00:08]} Bc5 {[%emt 0:00:08]} 20. Bxc5 {[%emt 0:00:08]} Nxc5 {[%emt 0:00:01]} 21. Kh2 {[%emt 0:00:30]} Re7 {[%emt 0:00:16]} 22. f4 {[%emt 0:00:06]} Ree8 {[%emt 0:00:27]} 23. e5 {[%emt 0:00:02]} Nfd7 {[%emt 0:00:01]} 24. b4 {[%emt 0:00:11]} Ne6 {[%emt 0:00:13]} 25. Ne4 {[%emt 0:00:03]} Rcd8 {[%emt 0:00:02]} 26. Nd6 {[%emt 0:00:02]} Rf8 {[%emt 0:00:02]} 27. a3 {[%emt 0:00:06]} Nb6 {[%emt 0:00:17]} 28. Qb3 {[%emt 0:00:03]} Qe7 {[%emt 0:00:06]} 29. a4 a6 {[%emt 0:00:05]} 30. a5 {[%emt 0:00:05]} Nc8 {[%emt 0:00:01]} 31. Nxc8 {[%emt 0:00:05]} Rxc8 {[%emt 0:00:02]} 32. Rd6 {[%emt 0:00:02]} Rfe8 {[%emt 0:00:11]} 33. Red1 {[%emt 0:00:03]} Rcd8 {[%emt 0:00:06]} 34. R1d3 {[%emt 0:00:05]} g5 {[%emt 0:00:09]} 35. f5 {[%emt 0:00:05]} Nc7 {[%emt 0:00:01]} 36. Rxd8 {[%emt 0:00:02]} Rxd8 {[%emt 0:00:01]} 37. Qd1 {[%emt 0:00:05]} Rxd3 {[%emt 0:00:03]} 38. Qxd3 {[%emt 0:00:01]} Qxe5 {[%emt 0:00:02]} 39. Qd8+ {[%emt 0:00:01]} Ne8 {[%emt 0:00:08]} 40. Qxg5 {[%emt 0:00:05]} Nf6 {[%emt 0:00:01]} 41. Qf4 {[%emt 0:00:04]} Qxf4 {[%emt 0:00:02]} 42. gxf4 {[%emt 0:00:01]} Nh5 {[%emt 0:00:01]} 43. b5 {[%emt 0:00:03]} Nxf4 {[%emt 0:00:13]} 44. bxc6 {[%emt 0:00:03]} bxc6 {[%emt 0:00:02]} 45. Bxc6 {[%emt 0:00:01]} Nd3 {[%emt 0:00:03]} 46. Bd5 {[%emt 0:00:03]} Kf8 {[%emt 0:00:03]} 47. Bc4 {[%emt 0:00:01]} Nc5 {[%emt 0:00:01]} 48. f6 {[%emt 0:00:02]} gxf6 {[%emt 0:00:01]} 49. Kg3 {[%emt 0:00:02]} Ke7 {[%emt 0:00:03]} 50. h4 {[%emt 0:00:01]} f5 {[%emt 0:00:01]} 51. Kf4 {[%emt 0:00:01]} Kf6 {[%emt 0:00:01]} 52. h5 {[%emt 0:00:02]} Ne6+ {[%emt 0:00:01]} 53. Ke3 {[%emt 0:00:02]} Nc7 {[%emt 0:00:02]} 54. Kf4 {[%emt 0:00:02]} Ne6+ {[%emt 0:00:02]} 55. Ke3 {[%emt 0:00:00]} Nc7 {[%emt 0:00:04]} 56. Kf4 {[%emt 0:00:01]} Ne6+ {[%emt 0:00:01]} 57. Ke3 {[%emt 0:00:01]} Nc7 {[%emt 0:00:04] Ke4 Ke5+} 1/2-1/2

[Event "RUS-ch Blitz Women 2018"]
[Site "Sochi"]
[Date "2018.10.07"]
[Round "14"]
[White "Petrochenko, Maria"]
[Black "Vasilevich, Tatjana"]
[Result "0-1"]
[ECO "A40"]
[WhiteElo "1903"]
[BlackElo "2360"]
[Annotator "ChessBase"]
[PlyCount "90"]
[EventDate "2018.10.07"]
[EventType "swiss"]
[EventCountry "RUS"]
[SourceTitle "playchess.com"]
[Source "ChessBase"]
[SourceQuality "1"]
[TimeControl "180+2"]

1. d4 {[%emt 0:00:00]} Nf6 {[%emt 0:00:00]} 2. c4 {[%emt 0:00:00]} e6 {[%emt 0:00:00]} 3. g3 {[%emt 0:00:00]} d5 {[%emt 0:00:00]} 4. Nf3 {[%emt 0:00:02]} dxc4 {[%emt 0:00:02]} 5. Qa4+ {[%emt 0:00:02]} c6 {[%emt 0:00:13]} 6. Qxc4 {[%emt 0:00:01]} b5 {[%emt 0:00:01]} 7. Qd3 {[%emt 0:00:03]} Bb7 {[%emt 0:00:03]} 8. Bg2 {[%emt 0:00:04]} a6 {[%emt 0:00:01]} 9. O-O {[%emt 0:00:12]} Be7 {[%emt 0:00:01]} 10. a3 {[%emt 0:00:05]} Nbd7 {[%emt 0:00:06]} 11. Be3 {[%emt 0:00:13]} c5 {[%emt 0:00:05]} 12. dxc5 {[%emt 0:00:04]} Nxc5 {[%emt 0:00:01]} 13. Qxd8+ {[%emt 0:00:07]} Rxd8 {[%emt 0:00:01]} 14. Nbd2 {[%emt 0:00:04]} O-O {[%emt 0:00:37]} 15. b4 {[%emt 0:00:07]} Na4 {[%emt 0:00:07]} 16. Rac1 {[%emt 0:00:06]} Rc8 {[%emt 0:00:07]} 17. Bd4 {[%emt 0:00:11]} Rfd8 {[%emt 0:00:05]} 18. Nb3 {[%emt 0:00:13]} Bd5 {[%emt 0:00:08]} 19. Nbd2 {[%emt 0:00:10]} Ne4 {[%emt 0:00:10]} 20. Nxe4 {[%emt 0:00:02]} Bxe4 {[%emt 0:00:01]} 21. Ba1 {[%emt 0:00:14]} Bf6 {[%emt 0:00:11]} 22. Bxf6 {[%emt 0:00:07]} gxf6 {[%emt 0:00:00]} 23. Rfd1 {[%emt 0:00:12]} Rxd1+ {[%emt 0:00:21]} 24. Rxd1 {[%emt 0:00:01]} Rc3 {[%emt 0:00:04]} 25. Rd8+ {[%emt 0:00:07]} Kg7 {[%emt 0:00:01]} 26. Rd6 {[%emt 0:00:06]} Rxa3 {[%emt 0:00:17]} 27. Rxa6 {[%emt 0:00:02]} Ra1+ {[%emt 0:00:04]} 28. Bf1 {[%emt 0:00:01]} Bxf3 {[%emt 0:00:15]} 29. exf3 {[%emt 0:00:01]} Rb1 {[%emt 0:00:01]} 30. Ra5 {[%emt 0:00:08]} Nc3 {[%emt 0:00:01]} 31. Ra3 {[%emt 0:00:07]} Ne2+ {[%emt 0:00:16]} 32. Kg2 {[%emt 0:00:01]} Nd4 {[%emt 0:00:01]} 33. Bd3 {[%emt 0:00:25]} Rxb4 {[%emt 0:00:02]} 34. f4 {[%emt 0:00:11]} e5 {[%emt 0:00:06]} 35. fxe5 {[%emt 0:00:02]} fxe5 {[%emt 0:00:00]} 36. Ra7 {[%emt 0:00:06]} h6 {[%emt 0:00:13]} 37. Be4 {[%emt 0:00:02]} Kf6 {[%emt 0:00:08]} 38. Bd5 {[%emt 0:00:01]} Ne6 {[%emt 0:00:01]} 39. Ra6 {[%emt 0:00:13]} Rd4 {[%emt 0:00:07]} 40. Bb3 {[%emt 0:00:08]} b4 {[%emt 0:00:06]} 41. Rb6 {[%emt 0:00:02]} Kf5 {[%emt 0:00:08]} 42. h3 {[%emt 0:00:15]} Kf6 {[%emt 0:00:02]} 43. h4 {[%emt 0:00:05]} Ke7 {[%emt 0:00:03]} 44. Rb7+ {[%emt 0:00:05]} Kf6 {[%emt 0:00:02]} 45. Bxe6 {[%emt 0:00:02]} fxe6 {[%emt 0:00:02]} 0-1

[Event "RUS-ch Blitz Women 2018"]
[Site "Sochi"]
[Date "2018.10.07"]
[Round "15"]
[White "Bodnaruk, Anastasia"]
[Black "Voit, Daria"]
[Result "0-1"]
[ECO "B20"]
[WhiteElo "2423"]
[BlackElo "2352"]
[Annotator "NA"]
[PlyCount "88"]
[EventDate "2018.10.07"]
[EventType "swiss"]
[EventCountry "RUS"]
[SourceTitle "playchess.com"]
[Source "ChessBase"]
[SourceQuality "1"]
[TimeControl "180+2"]

1. e4 {[%emt 0:00:00]} c5 {[%emt 0:00:00]} 2. b3 {[%emt 0:00:00]} b6 {[%emt 0:00:00]} 3. d4 {[%emt 0:00:09]} cxd4 {[%emt 0:00:08]} 4. Qxd4 {[%emt 0:00:01]} Nc6 {[%emt 0:00:01]} 5. Qd2 {[%emt 0:00:03]} Bb7 {[%emt 0:00:10]} 6. Bb2 {[%emt 0:00:02]} d6 {[%emt 0:00:07]} 7. Nc3 {[%emt 0:00:04]} Nf6 {[%emt 0:00:03]} 8. O-O-O {[%emt 0:00:07]} a6 {[%emt 0:00:12]} 9. f3 {[%emt 0:00:08]} b5 {[%emt 0:00:02]} 10. Kb1 {[%emt 0:00:14]} e6 {[%emt 0:00:09]} 11. g4 {[%emt 0:00:17]} Be7 {[%emt 0:00:02]} 12. h4 {[%emt 0:00:06]} h6 {[%emt 0:00:05]} 13. Bd3 {[%emt 0:00:22]} Nd7 {[%emt 0:00:04]} 14. f4 {[%emt 0:00:10]} Qb6 {[%emt 0:00:26]} 15. Nf3 {[%emt 0:00:04]} O-O-O {[%emt 0:00:03]} 16. g5 {[%emt 0:00:18]} Nc5 {[%emt 0:00:28]} 17. Ne2 {[%emt 0:00:26]} Rhg8 {[%emt 0:00:12]} 18. Qe3 {[%emt 0:00:26]} Kb8 {[%emt 0:00:11]} 19. Rhg1 {[%emt 0:00:06]} Ka8 {[%emt 0:00:18]} 20. a3 {[%emt 0:00:10]} Rc8 {[%emt 0:00:32]} 21. f5 {[%emt 0:00:03]} hxg5 {[%emt 0:00:12]} 22. hxg5 {[%emt 0:00:01]} e5 {[%emt 0:00:08]} 23. Nc3 {[%emt 0:00:09]} Nb8 {[%emt 0:00:05]} 24. Nd5 {[%emt 0:00:06]} Bxd5 {[%emt 0:00:02]} 25. exd5 {[%emt 0:00:01]} Nbd7 {[%emt 0:00:03]} 26. Qe2 {[%emt 0:00:08]} Nxd3 {[%emt 0:00:02]} 27. Qxd3 {[%emt 0:00:03]} Qf2 {[%emt 0:00:03]} 28. Rdf1 {[%emt 0:00:02]} Qc5 {[%emt 0:00:02]} 29. Nd2 {[%emt 0:00:03]} Nb6 {[%emt 0:00:02]} 30. Ne4 {[%emt 0:00:05]} Qxd5 {[%emt 0:00:01]} 31. Qf3 {[%emt 0:00:01]} Rgd8 32. f6 {[%emt 0:00:04]} gxf6 {[%emt 0:00:06]} 33. gxf6 {[%emt 0:00:00]} Bf8 {[%emt 0:00:01]} 34. Rg8 {[%emt 0:00:04]} Bh6 {[%emt 0:00:02]} 35. Rxd8 {[%emt 0:00:01]} Rxd8 {[%emt 0:00:01]} 36. Rd1 {[%emt 0:00:01]} Qc6 {[%emt 0:00:01]} 37. Qg4 {[%emt 0:00:02]} Bf4 {[%emt 0:00:02]} 38. Qf5 {[%emt 0:00:02]} d5 {[%emt 0:00:02]} 39. Nc3 {[%emt 0:00:02]} d4 {[%emt 0:00:02]} 40. Ne4 {[%emt 0:00:02]} Rc8 {[%emt 0:00:00]} 41. Nf2 {[%emt 0:00:03]} Nd5 {[%emt 0:00:02]} 42. Qe4 {[%emt 0:00:01]} Ne3 {[%emt 0:00:01]} 43. Qxc6+ {[%emt 0:00:03]} Rxc6 {[%emt 0:00:01]} 44. Nd3 {[%emt 0:00:01]} Nxd1 {[%emt 0:00:02]} 0-1

[Event "RUS-ch Blitz Women 2018"]
[Site "Sochi"]
[Date "2018.10.07"]
[Round "15"]
[White "Ambartsumova, Karina"]
[Black "Dordzhieva, Dinara"]
[Result "1-0"]
[ECO "D35"]
[WhiteElo "2379"]
[BlackElo "2340"]
[Annotator "NA"]
[PlyCount "147"]
[EventDate "2018.10.07"]
[EventType "swiss"]
[EventCountry "RUS"]
[SourceTitle "playchess.com"]
[Source "ChessBase"]
[SourceQuality "1"]
[TimeControl "180+2"]

1. c4 {[%emt 0:00:00]} e6 {[%emt 0:00:00]} 2. Nc3 {[%emt 0:00:04]} d5 {[%emt 0:00:00]} 3. d4 {[%emt 0:00:01]} Nf6 {[%emt 0:00:01]} 4. cxd5 exd5 {[%emt 0:00:01]} 5. Bg5 Be7 6. e3 c6 7. Bd3 {[%emt 0:00:10]} Nbd7 {[%emt 0:00:02]} 8. h3 {[%emt 0:00:03]} g6 {[%emt 0:00:14]} 9. Nf3 {[%emt 0:00:09]} Nh5 {[%emt 0:00:01]} 10. Bxe7 {[%emt 0:00:17]} Qxe7 {[%emt 0:00:01]} 11. Qe2 {[%emt 0:00:03]} Nb6 {[%emt 0:00:06]} 12. O-O-O {[%emt 0:00:13]} Ng7 {[%emt 0:00:00]} 13. g4 {[%emt 0:00:19]} Be6 {[%emt 0:00:01]} 14. Kb1 {[%emt 0:00:03]} O-O-O {[%emt 0:00:02]} 15. Qc2 {[%emt 0:00:13]} Kb8 {[%emt 0:00:04]} 16. Nd2 {[%emt 0:00:07]} Ne8 {[%emt 0:00:03]} 17. Nb3 {[%emt 0:00:03]} Nd6 {[%emt 0:00:08]} 18. Nc5 Bc8 19. Ka1 {[%emt 0:00:16]} h5 {[%emt 0:00:03]} 20. Qe2 {[%emt 0:00:20]} hxg4 {[%emt 0:00:08]} 21. hxg4 {[%emt 0:00:02]} Rh4 {[%emt 0:00:01]} 22. Rxh4 {[%emt 0:00:09]} Qxh4 {[%emt 0:00:01]} 23. Rg1 {[%emt 0:00:20]} g5 {[%emt 0:00:09]} 24. b3 {[%emt 0:00:10]} Rh8 {[%emt 0:00:01]} 25. f3 {[%emt 0:00:06]} Qh2 {[%emt 0:00:28]} 26. Qg2 {[%emt 0:00:02]} Qxg2 {[%emt 0:00:04]} 27. Rxg2 {[%emt 0:00:01]} Rh3 28. Be2 {[%emt 0:00:03]} Nd7 {[%emt 0:00:05]} 29. Nd1 {[%emt 0:00:02]} f6 {[%emt 0:00:14]} 30. Nf2 {[%emt 0:00:02]} Rh4 {[%emt 0:00:01]} 31. Kb2 {[%emt 0:00:06]} Nf8 {[%emt 0:00:13]} 32. Bd3 {[%emt 0:00:03]} Nd7 {[%emt 0:00:05]} 33. a3 {[%emt 0:00:16]} Nxc5 {[%emt 0:00:06]} 34. dxc5 {[%emt 0:00:01]} Nf7 {[%emt 0:00:01]} 35. Be2 {[%emt 0:00:03]} Kc7 {[%emt 0:00:02]} 36. Kc3 {[%emt 0:00:05]} b6 {[%emt 0:00:01]} 37. b4 {[%emt 0:00:07]} bxc5 {[%emt 0:00:01]} 38. bxc5 {[%emt 0:00:01]} Nd8 {[%emt 0:00:00]} 39. Nd3 {[%emt 0:00:04]} Rh1 {[%emt 0:00:08]} 40. f4 {[%emt 0:00:02]} Ne6 {[%emt 0:00:04]} 41. Rf2 {[%emt 0:00:04]} gxf4 {[%emt 0:00:09]} 42. exf4 {[%emt 0:00:02]} d4+ {[%emt 0:00:01]} 43. Kd2 {[%emt 0:00:02]} Ba6 {[%emt 0:00:04]} 44. f5 {[%emt 0:00:06]} Ng5 {[%emt 0:00:01]} 45. Rf4 {[%emt 0:00:02]} Ra1 {[%emt 0:00:05]} 46. Rxd4 {[%emt 0:00:05]} Rxa3 {[%emt 0:00:11]} 47. Nb4 {[%emt 0:00:03]} Bxe2 {[%emt 0:00:39]} 48. Kxe2 {[%emt 0:00:01]} a5 {[%emt 0:00:04]} 49. Nd3 {[%emt 0:00:00]} Rc3 {[%emt 0:00:01]} 50. Ke3 {[%emt 0:00:02]} Ra3 {[%emt 0:00:11]} 51. Rd6 {[%emt 0:00:02]} a4 {[%emt 0:00:11]} 52. Rxf6 {[%emt 0:00:01]} Rb3 {[%emt 0:00:00]} 53. Rg6 {[%emt 0:00:01]} a3 {[%emt 0:00:01]} 54. Rg7+ {[%emt 0:00:03]} Kc8 {[%emt 0:00:01]} 55. Ra7 {[%emt 0:00:02]} Kb8 {[%emt 0:00:15]} 56. Ra4 {[%emt 0:00:01]} Nf7 {[%emt 0:00:01]} 57. Rb4+ {[%emt 0:00:02]} Rxb4 {[%emt 0:00:04]} 58. Nxb4 {[%emt 0:00:01]} Kc7 {[%emt 0:00:01]} 59. Kf4 {[%emt 0:00:01]} Kd7 60. g5 Ke7 {[%emt 0:00:12]} 61. g6 {[%emt 0:00:03]} Nd8 {[%emt 0:00:02]} 62. Ke5 {[%emt 0:00:03]} Kf8 {[%emt 0:00:05]} 63. f6 Nb7 64. Kd4 {[%emt 0:00:07]} Na5 {[%emt 0:00:01]} 65. Kc3 {[%emt 0:00:03]} Nb7 66. Nd3 {[%emt 0:00:01]} Nd8 {[%emt 0:00:06]} 67. Kb3 {[%emt 0:00:02]} Ne6 {[%emt 0:00:01]} 68. Kxa3 {[%emt 0:00:01]} Ng5 {[%emt 0:00:03]} 69. Kb4 {[%emt 0:00:01]} Ne4 {[%emt 0:00:00]} 70. f7 {[%emt 0:00:02]} Nf6 {[%emt 0:00:06]} 71. Ne5 {[%emt 0:00:03]} Nd5+ {[%emt 0:00:01]} 72. Ka5 {[%emt 0:00:02]} Nf4 {[%emt 0:00:01]} 73. Kb6 {[%emt 0:00:03]} Ne6 {[%emt 0:00:04]} 74. Kxc6 {[%emt 0:00:02]} 1-0